bitfinex/quotes_ETHUSD_20250404
["timestamp","ask_amount","ask_price","bid_price","bid_amount"]
[1743780985694,0.05,1794.9,1794.7,5.57195]
[1743780986061,0.05,1794.9,1794.6,5.57216]
[1743780986259,0.05,1794.9,1794.8,5.57165]
[1743780986592,5.57171,1794.8,1794.3,0.7577]
[1743780986759,5.5727,1794.5,1794.0,6.33599]
[1743780987090,5.57227,1794.6,1794.1,5.57361]
[1743780987267,5.57273,1794.5,1794.1,5.57361]
[1743780987472,0.4203737,1794.6,1794.3,5.5732]
[1743780987675,5.57229,1794.6,1794.2,5.57347]
[1743780987982,6.30850858,1794.5,1794.2,5.57351]
[1743780988186,6.30850858,1794.5,1794.2,5.57337]
[1743780988475,5.75127958,1794.5,1794.2,5.57334]
[1743780988663,5.75127958,1794.5,1794.2,11.14664]
[1743780988868,5.75127958,1794.5,1794.4,5.57289]
[1743780989979,5.75127958,1794.5,1794.1,5.57371]
[1743780990177,5.75127958,1794.5,1794.0,0.762]
[1743780990178,5.57303,1794.4,1793.9,5.57442]
[1743780990352,0.557303,1794.3,1793.9,5.57442]
[1743780990550,0.557303,1794.3,1793.9,5.57425]
[1743780990775,0.557303,1794.3,1793.9,11.14856]
[1743780990985,5.57322,1794.3,1793.5,4.44895599]
[1743780991197,5.57322,1794.3,1793.9,5.57443]
[1743780991395,12.14259958,1794.5,1793.6,5.57535]
[1743780991692,5.75127958,1794.5,1794.2,5.57333]
[1743780991893,11.32390958,1794.5,1793.9,5.57426]
[1743780992097,1.13239096,1794.4,1794.2,5.5733]
[1743780992250,5.5726,1794.5,1794.0,5.57392]
[1743780992458,5.5729,1794.4,1794.0,5.57392]
[1743780992665,5.57227,1794.6,1793.7,0.7957]
[1743780992958,5.57429,1794.0,1793.5,5.57555]
[1743780993264,0.557429,1793.9,1793.6,5.57515]
[1743780993597,6.33153,1794.3,1793.9,5.57434]
[1743780993795,11.90492,1794.3,1793.9,5.57434]
[1743780994000,0.7583,1794.1,1793.0,0.7998]
[1743780994301,5.5762,1793.4,1793.0,0.7998]
[1743780994599,0.55762,1793.4,1792.7,0.7944]
[1743780994899,0.8045,1793.5,1792.7,0.7944]
[1743780995069,8.75779043,1793.6,1793.1,5.57681]
[1743780995273,5.75779043,1793.6,1793.4,5.57593]
[1743780995476,5.75779043,1793.6,1793.5,5.57568]
[1743780997099,5.75779043,1793.6,1793.2,4.44895599]
[1743780997425,11.90912947,1793.6,1793.1,6.39791]
[1743780997600,5.57583,1793.5,1793.1,6.39791]
[1743780997797,6.33356947,1793.6,1792.8,6.3922]
[1743780998111,5.57779,1792.9,1792.5,0.8144]
[1743780998312,5.57736,1793.0,1792.5,6.39293]
[1743780998634,0.557736,1793.0,1792.6,5.5783]
[1743780998927,0.7934,1793.4,1792.7,0.05577784]
[1743780999087,7.079,1793.5,1793.1,5.57677]
[1743780999288,5.57589,1793.5,1793.0,6.37002]
[1743780999489,12.99893161,1793.6,1793.0,0.7928]
[1743780999714,3.0,1793.5,1792.6,0.7567]
[1743780999912,5.57729,1793.0,1792.6,0.7567]
[1743781000115,5.57693,1793.1,1792.3,6.34085]
[1743781000289,5.57922,1792.4,1792.1,0.05]
[1743781000498,0.8218,1792.6,1792.1,0.05]
[1743781000699,15.67388,1792.8,1792.2,5.57949]
[1743781000927,22.899248,1792.8,1792.3,5.5793]
[1743781001136,11.743228,1792.8,1792.4,5.57909]
[1743781001295,15.67403,1792.8,1792.3,5.5793]
[1743781001628,5.57822,1792.7,1792.2,5.57968]
[1743781001832,5.57867,1792.6,1792.1,0.05]
[1743781002031,5.57882,1792.5,1792.1,0.05]
[1743781002194,11.15741,1792.6,1792.1,5.62997]
[1743781002394,6.694411,1792.6,1792.1,5.62997]
[1743781002686,5.57894,1792.5,1792.1,0.05]
[1743781002891,6.694431,1792.6,1792.1,0.05]
[1743781003087,5.57869,1792.6,1792.1,5.62992]
[1743781003326,5.57869,1792.6,1792.1,5.62988]
[1743781003696,15.67386,1792.8,1792.2,5.57973]
[1743781004011,7.096,1792.8,1792.3,6.33361]
[1743781004215,12.674,1792.8,1792.3,6.33361]
[1743781004527,7.096,1792.8,1792.3,1.945533]
[1743781004712,12.24279214,1793.0,1792.3,0.7542]
[1743781004924,6.66536214,1793.0,1792.6,5.57847]
[1743781005091,12.24275214,1793.0,1792.5,5.57879]
[1743781005294,12.24262214,1793.0,1792.5,5.57879]
[1743781005605,6.66536214,1793.0,1792.6,0.05577758]
[1743781005808,8.58078929,1792.5,1792.3,6.33357]
[1743781005997,4.58088929,1792.5,1792.4,7.545167]
[1743781006336,9.29e-06,1792.5,1792.4,7.545167]
[1743781006624,9.29e-06,1792.5,1792.4,6.995167]
[1743781006842,0.8298,1793.5,1793.3,5.576]
[1743781007047,0.8298,1793.5,1793.4,0.05575601]
[1743781007226,0.8298,1793.5,1792.6,5.57842]
[1743781007227,0.8298,1793.5,1793.0,5.57711]
[1743781007436,1.25163944,1793.5,1793.0,5.57717]
[1743781007635,0.8298,1793.5,1793.4,5.576]
[1743781008018,0.8298,1793.5,1793.1,5.57673]
[1743781008431,0.8298,1793.5,1793.3,5.57627]
[1743781009143,0.8298,1793.5,1793.1,11.15359]
[1743781009342,0.8298,1793.5,1793.2,5.57656]
[1743781009515,0.8298,1793.5,1792.7,5.57811]
[1743781009715,0.8298,1793.5,1793.1,5.57666]
[1743781010113,0.8298,1793.5,1793.3,5.57629]
[1743781010445,0.8298,1793.5,1793.3,5.57606]
[1743781010632,0.8298,1793.5,1793.4,5.576]
[1743781011027,0.8298,1793.5,1793.3,5.57615]
[1743781011220,0.8298,1793.5,1793.4,5.576]
[1743781011417,0.8298,1793.5,1793.1,5.57685]
[1743781011649,0.8298,1793.5,1793.2,5.57642]
[1743781011874,5.57559,1793.6,1793.1,5.57693]
[1743781012073,6.133249,1793.5,1793.1,5.57693]
[1743781012570,5.98313018,1794.1,1792.9,5.57752]
[1743781012777,5.57497,1793.8,1793.3,5.57615]
[1743781013072,5.57497,1793.8,1793.4,5.57581]
[1743781013277,5.57479,1793.8,1793.4,5.57581]
[1743781013586,5.57538,1793.6,1793.2,5.57636]
[1743781013966,5.57954,1792.3,1792.1,0.05]
[1743781014331,5.57973,1792.2,1792.1,0.05]
[1743781015590,5.5816,1791.6,1791.5,0.005]
[1743781016077,6.697901,1791.6,1791.5,0.005]
[1743781016379,5.5816,1791.6,1791.5,0.005]
[1743781017373,5.58082,1791.9,1791.5,0.005]
[1743781017533,0.42150156,1792.2,1791.5,0.005]
[1743781017736,5.57832,1792.7,1792.0,5.5802]
[1743781017988,5.57762,1792.9,1792.1,6.40024]
[1743781017989,3.42791727,1792.2,1792.1,6.40024]
[1743781018293,3.42791727,1792.2,1792.1,7.598284]
[1743781018492,2.59461727,1792.2,1792.1,7.598284]
[1743781019413,5.28147591,1793.1,1792.6,5.5782]
[1743781019572,10.85870591,1793.1,1792.7,0.78]
[1743781019911,5.57772,1792.9,1792.7,0.78]
[1743781020120,5.57786,1792.8,1792.7,0.78]
[1743781020812,5.57772,1792.9,1792.7,0.78]
[1743781021286,5.57786,1792.8,1792.7,0.78]
[1743781021800,5.57772,1792.9,1792.7,0.78]
[1743781022198,5.57786,1792.8,1792.7,0.78]
[1743781022376,6.693418,1792.8,1792.7,0.78]
[1743781022772,11.14237399,1792.8,1792.7,0.78]
[1743781022980,11.14237399,1792.8,1791.6,5.58133]
[1743781022981,5.5803,1792.1,1791.6,5.58133]
[1743781023184,5.48063,1791.9,1791.5,0.005]
[1743781023383,5.5807,1791.9,1791.5,0.005]
[1743781023610,11.16159,1791.9,1791.5,0.005]
[1743781023775,5.5816,1791.6,1791.5,0.005]
[1743781024704,5.99561956,1791.6,1791.5,0.005]
[1743781024909,5.5816,1791.6,1791.5,0.005]
[1743781025112,5.58106,1791.8,1791.5,0.005]
[1743781025317,5.77119432,1791.7,1791.5,5.58679]
[1743781025530,5.77119432,1791.7,1791.6,0.558679]
[1743781025832,5.77119432,1791.7,1791.5,0.005]
[1743781026126,5.5816,1791.6,1791.5,0.005]
[1743781026625,10.03055599,1791.6,1791.5,0.005]
[1743781026815,10.45168713,1791.6,1791.5,0.005]
[1743781027016,13.44068713,1791.6,1791.5,0.005]
[1743781027190,16.63680428,1791.6,1791.5,0.005]
[1743781028724,16.63680428,1791.6,1791.5,1e-05]
[1743781028923,5.58444,1790.7,1790.3,5.58553]
[1743781029132,5.58495,1790.6,1790.1,0.05]
[1743781029427,5.58596,1790.2,1790.1,0.05]
[1743781029634,9.144556,1790.2,1790.1,0.05]
[1743781029836,9.144556,1790.2,1789.1,0.32813113]
[1743781030043,5.58752,1789.7,1789.1,0.32813113]
[1743781030203,5.5888,1789.3,1789.1,0.32813113]
[1743781030408,10.03804599,1789.2,1789.1,0.05]
[1743781030810,4.44895599,1789.2,1789.1,0.05]
[1743781031036,10.03717599,1789.5,1789.1,0.05]
[1743781031204,5.5882,1789.5,1789.1,0.05]
[1743781031527,10.03634599,1789.8,1789.3,5.58859]
[1743781031746,5.5869,1789.9,1789.4,5.58832]
[1743781032090,5.5869,1789.9,1789.3,5.58877]
[1743781032295,5.5869,1789.9,1789.1,0.05]
[1743781032296,5.58909,1789.2,1789.1,0.05]
[1743781032835,7.2,1789.3,1789.1,0.05]
[1743781033054,5.58844,1789.5,1789.1,0.05]
[1743781033259,7.194,1789.6,1789.1,0.05]
[1743781033425,5.58861,1789.4,1789.1,0.05]
[1743781033617,5.58909,1789.2,1789.1,0.05]
[1743781034346,8.58409,1789.2,1789.1,1e-05]
[1743781034560,5.59033,1788.8,1788.7,0.012]
[1743781034705,10.03928599,1788.8,1788.7,0.012]
[1743781035453,5.59096,1788.6,1788.1,0.05]
[1743781035624,5.59221,1788.2,1788.1,0.05]
[1743781036311,5.59425,1787.6,1787.0,5.59581]
[1743781036512,5.5944,1787.5,1787.0,5.59593]
[1743781036802,12.86123,1787.6,1787.1,5.64564]
[1743781036916,5.59373,1787.8,1787.2,5.65127292]
[1743781037112,5.59475,1787.4,1787.1,0.05]
[1743781037312,4.44895599,1787.2,1787.1,1e-05]
[1743781037636,7.293,1787.3,1787.1,1e-05]
[1743781037836,5.59446,1787.5,1787.1,1e-05]
[1743781038149,5.5946,1787.5,1787.1,1e-05]
[1743781038312,5.59534,1787.2,1787.1,1e-05]
[1743781038514,5.595,1787.4,1787.1,1e-05]
[1743781038950,5.88436723,1787.6,1787.1,5.59554]
[1743781039124,0.29008723,1787.6,1787.2,5.59511]
[1743781039460,0.29008723,1787.6,1787.2,5.59518]
[1743781039663,7.307,1787.8,1787.5,5.59412]
[1743781039947,0.29001921,1788.0,1787.8,5.59339]
[1743781040162,5.59023,1788.9,1787.6,7.39293293]
[1743781040468,5.74864595,1789.0,1788.0,5.59284]
[1743781040618,5.74864595,1789.0,1788.1,5.59252]
[1743781040819,5.74864595,1789.0,1788.8,5.59019]
[1743781041113,5.74864595,1789.0,1788.8,5.59033]
[1743781041650,5.74864595,1789.0,1788.9,5.59002]
[1743781041818,5.74864595,1789.0,1788.2,0.559252]
[1743781042016,5.74864595,1789.0,1788.5,5.59127]
[1743781042256,11.33848595,1789.0,1788.5,5.59127]
[1743781042423,4.44895599,1788.8,1786.5,0.1]
[1743781042625,5.59379,1787.7,1787.2,5.59506]
[1743781042813,10.04206599,1788.0,1787.4,5.59471]
[1743781043031,5.59332,1787.9,1787.4,5.59471]
[1743781043327,10.04179599,1788.0,1787.5,5.59424]
[1743781043522,1.0041796,1787.9,1787.2,5.59507]
[1743781043727,6.5973796,1787.9,1787.4,5.59452]
[1743781043959,5.5932,1787.9,1787.4,5.59452]
[1743781044114,10.04208599,1788.0,1787.5,5.59416]
[1743781044314,5.59287,1788.0,1787.2,5.59534]
[1743781044540,5.59373,1787.8,1787.2,5.59514]
[1743781044755,5.59373,1787.8,1787.1,1e-05]
[1743781044756,4.44895599,1787.7,1787.1,1e-05]
[1743781044910,6.0391656,1787.6,1787.1,1e-05]
[1743781045113,5.59496,1787.4,1787.1,1e-05]
[1743781045347,11.19037,1787.3,1787.1,1e-05]
[1743781045517,15.63875599,1787.4,1787.1,1e-05]
[1743781045729,5.59534,1787.2,1787.1,1e-05]
[1743781045913,0.559534,1787.2,1787.1,1e-05]
[1743781046112,5.59534,1787.2,1787.1,1e-05]
[1743781046446,5.59529,1787.3,1787.1,1e-05]
[1743781046640,5.59534,1787.2,1787.1,1e-05]
[1743781046817,5.59529,1787.3,1787.1,1e-05]
[1743781047167,11.77895599,1787.4,1787.1,1e-05]
[1743781047451,7.33,1787.4,1787.1,1e-05]
[1743781047664,7.33,1787.4,1787.2,5.5952]
[1743781047815,7.33,1787.4,1787.1,1e-05]
[1743781048015,5.59365,1787.8,1787.1,1e-05]
[1743781048016,12.89716,1787.9,1787.1,0.559595]
[1743781048214,5.59271,1788.1,1787.6,5.59396]
[1743781048412,12.89576,1788.4,1787.4,5.59471]
[1743781048720,6.60973019,1789.0,1787.5,0.05593089]
[1743781048721,12.78671618,1789.0,1787.5,0.05593089]
[1743781048918,5.59019,1788.9,1788.3,5.59167]
[1743781049262,5.74864595,1788.7,1788.6,5.59081]
[1743781049565,5.74864595,1788.7,1788.6,5.59096]
[1743781049912,5.74864595,1788.7,1787.7,17.35866599]
[1743781050123,11.33948595,1788.7,1788.2,5.5921]
[1743781050412,11.33948595,1788.7,1788.5,5.59112]
[1743781050413,5.74864595,1788.7,1788.5,5.59112]
[1743781050617,5.74864595,1788.7,1788.6,5.59096]
[1743781050817,5.74864595,1788.7,1788.6,6.57689122]
[1743781052145,5.74864595,1788.7,1788.4,5.59157]
[1743781052346,5.74864595,1788.7,1788.3,5.59177]
[1743781052788,5.74864595,1788.7,1787.9,5.59301]
[1743781052955,5.59096,1788.6,1787.8,5.59345]
[1743781053155,5.5919,1788.4,1787.9,5.59314]
[1743781053344,5.59227,1788.2,1787.8,5.59325]
[1743781053543,0.55919,1788.4,1787.6,5.59395]
[1743781053776,11.18597,1788.0,1787.5,5.59427]
[1743781054082,5.59369,1787.8,1787.3,5.59476]
[1743781054283,5.59285,1788.0,1787.5,5.5942]
[1743781054484,11.18592,1788.0,1787.5,5.5942]
[1743781054668,5.59285,1788.0,1787.5,5.5942]
[1743781054981,5.5925,1788.2,1787.8,5.59341]
[1743781055289,5.5926,1788.1,1787.7,5.59374]
[1743781055489,3.55919,1788.4,1787.5,0.55942]
[1743781055490,5.59192,1788.3,1787.8,5.59334]
[1743781055646,5.59192,1788.3,1787.9,5.59303]
[1743781056186,5.59203,1788.3,1787.5,6.15376]
[1743781056349,6.207152,1788.3,1787.9,5.59313]
[1743781056552,5.59235,1788.2,1787.7,5.59355]
[1743781056883,5.59235,1788.2,1787.2,5.59534]
[1743781056884,5.59221,1788.2,1787.2,5.59534]
[1743781057087,7.304,1788.5,1787.4,5.59456]
[1743781057388,5.59033,1788.9,1787.7,10.04262599]
[1743781057549,0.58801948,1788.8,1788.4,5.59131]
[1743781057753,3.0,1788.9,1788.5,5.59108]
[1743781057964,8.59014,1788.9,1788.5,5.59108]
[1743781058198,8.59014,1788.9,1788.3,5.59185]
[1743781058199,5.59076,1788.7,1788.3,5.59185]
[1743781058358,8.59003,1788.9,1788.4,11.183]
[1743781058548,5.59044,1788.8,1788.4,5.59142]
[1743781058748,5.59065,1788.7,1788.3,5.59183]
[1743781059086,5.59065,1788.7,1788.1,5.59221]
[1743781059296,3.0,1788.7,1787.8,6.5976926]
[1743781059448,5.59138,1788.5,1788.0,11.18541]
[1743781059648,3.0,1788.7,1787.1,12.6828455]
[1743781059888,5.59201,1788.3,1787.8,5.59325]
[1743781060066,0.3,1788.6,1787.5,5.59428]
[1743781060067,5.59296,1788.0,1787.5,5.59428]
[1743781060391,5.59232,1788.2,1787.7,5.59363]
[1743781060752,5.59162,1788.4,1788.0,5.59276]
[1743781061096,5.59183,1788.4,1787.9,5.59314]
[1743781061250,0.559183,1788.4,1787.8,5.59328]
[1743781061590,5.59149,1788.5,1787.9,5.59303]
[1743781061790,5.59149,1788.5,1787.8,5.59346]
[1743781062087,5.5902,1788.9,1787.8,5.59346]
[1743781062287,5.59203,1788.3,1787.9,5.59314]
[1743781062493,3.0,1788.8,1788.1,5.59237]
[1743781062688,5.59107,1788.6,1788.1,5.59237]
[1743781062888,6.676533,1788.8,1788.2,5.59221]
[1743781063110,5.59112,1788.6,1788.2,5.5921]
[1743781063593,5.59128,1788.5,1788.1,11.18488]
[1743781063796,5.59153,1788.5,1788.0,5.59265]
[1743781064092,11.1822,1788.6,1788.2,5.59207]
[1743781064294,5.59255,1788.1,1787.7,5.5936]
[1743781064499,5.59223,1788.2,1787.8,5.5933]
[1743781064659,5.59223,1788.2,1787.7,5.59377]
[1743781064860,13.94351,1788.5,1787.6,5.59409]
[1743781065093,5.59301,1788.0,1787.6,5.59398]
[1743781065266,5.59301,1788.0,1787.6,5.59405]
[1743781065467,5.59254,1788.1,1787.7,5.59377]
[1743781065690,5.59301,1788.0,1787.6,5.59405]
[1743781065885,5.59254,1788.1,1787.7,5.59361]
[1743781066086,5.59335,1787.9,1787.5,5.59427]
[1743781066309,5.5939,1787.7,1787.3,5.59502]
[1743781066474,5.59349,1787.8,1787.4,5.5945]
[1743781066678,1.118477,1788.1,1787.7,5.59377]
[1743781066906,5.59267,1788.1,1787.7,5.59377]
[1743781067104,6.01276489,1788.2,1787.8,5.59335]
[1743781067306,5.5919,1788.3,1787.6,5.59393]
[1743781067506,5.593,1788.0,1787.6,11.18791]
[1743781067708,5.59316,1787.9,1787.6,5.59393]
[1743781067927,11.18661,1787.9,1787.5,5.59436]
[1743781068220,9.57715533,1788.2,1787.2,5.59524]
[1743781068383,5.59396,1787.7,1787.2,5.59522]
[1743781068584,11.18715,1787.8,1787.4,5.59454]
[1743781068807,5.59459,1787.5,1787.1,5.59555]
[1743781069014,11.18784,1787.7,1787.2,5.59505]
[1743781069193,5.59377,1787.7,1787.1,1e-05]
[1743781069404,5.59481,1787.4,1787.1,1e-05]
[1743781069584,5.59377,1787.7,1787.1,1e-05]
[1743781069585,11.18841,1787.6,1787.1,1e-05]
[1743781069919,0.42993763,1787.7,1787.1,1e-05]
[1743781070127,4.44895599,1788.0,1787.1,5.59546]
[1743781070283,5.59377,1787.7,1787.1,1e-05]
[1743781070485,5.59534,1787.2,1787.1,1e-05]
[1743781070705,5.5946,1787.5,1787.1,1e-05]
[1743781071024,5.59379,1787.7,1787.2,5.59514]
[1743781071183,11.18777,1787.7,1787.3,5.59488]
[1743781071387,5.59379,1787.7,1787.3,5.59488]
[1743781071697,5.59379,1787.7,1787.3,5.59486]
[1743781072014,5.59379,1787.7,1787.4,5.59467]
[1743781072325,12.80918,1787.9,1787.1,1e-05]
[1743781072494,11.34159595,1788.0,1787.6,5.59392]
[1743781072824,11.34159595,1788.0,1787.4,5.59452]
[1743781073025,5.74864595,1788.0,1787.2,5.59503]
[1743781073322,5.59317,1787.9,1787.2,5.59526]
[1743781073527,11.34151595,1788.0,1787.6,11.18799]
[1743781073730,5.59254,1788.1,1787.7,11.18735]
[1743781074026,5.59223,1788.2,1787.8,5.59342]
[1743781074335,5.59191,1788.3,1787.9,5.59304]
[1743781074539,5.59161,1788.4,1787.3,4.44895599]
[1743781074696,11.89695459,1788.7,1788.2,5.59208]
[1743781074895,0.28968147,1788.7,1788.5,5.59113]
[1743781075120,5.59018,1788.9,1788.4,5.59158]
[1743781075337,5.59018,1788.9,1788.4,11.183]
[1743781075338,5.59035,1788.8,1788.4,11.183]
[1743781075632,5.59033,1788.8,1787.9,5.59311]
[1743781075935,5.5908,1788.7,1788.3,5.59173]
[1743781076129,6.01815138,1788.7,1788.3,5.59173]
[1743781076342,3.0,1788.9,1788.3,5.59178]
[1743781076503,5.59077,1788.7,1788.3,11.1835]
[1743781076704,5.58972,1789.0,1788.1,5.59246]
[1743781076906,5.87893045,1789.2,1788.2,5.64812212]
[1743781077113,6.00155398,1789.3,1788.8,5.5902]
[1743781077326,5.58783,1789.7,1789.1,5.5892]
[1743781077620,5.63715,1789.9,1788.9,0.05589645]
[1743781077621,0.28967,1789.8,1789.6,5.58765]
[1743781077823,0.05,1789.9,1789.5,5.588]
[1743781078027,5.58723,1789.8,1788.8,5.00797599]
[1743781078225,5.58723,1789.8,1789.4,5.58837]
[1743781078527,0.05,1789.9,1789.2,5.58879]
[1743781078753,5.58839,1789.5,1788.9,6.0907876]
[1743781079045,5.58783,1789.7,1789.2,5.58897]
[1743781079215,5.58819,1789.5,1789.1,5.58933]
[1743781079614,5.58784,1789.6,1789.1,5.58927]
[1743781079817,5.63691,1789.9,1789.5,5.58802]
[1743781080010,5.58781,1789.7,1789.1,0.558927]
[1743781080212,5.58869,1789.4,1788.7,0.05588238]
[1743781080415,3.0,1789.8,1788.9,5.58988]
[1743781080416,5.5889,1789.3,1788.9,5.58988]
[1743781080654,5.58795,1789.6,1789.2,5.58896]
[1743781080944,5.63693,1789.9,1789.1,5.58922]
[1743781080945,0.05,1789.9,1789.6,5.58755]
[1743781081242,0.05,1789.9,1789.8,5.58721]
[1743781081445,5.6369,1789.9,1789.8,0.05585962]
[1743781081647,0.05,1789.9,1789.1,5.58933]
[1743781081854,0.05,1789.9,1789.8,5.58721]
[1743781082225,0.8706,1789.9,1789.8,5.58721]
[1743781082866,0.05,1790.9,1789.8,5.64306619]
[1743781083166,0.05,1790.9,1790.5,5.58476]
[1743781083324,0.05,1790.9,1790.2,5.58591]
[1743781083666,0.05,1790.9,1790.6,5.58454]
[1743781083867,0.05,1790.9,1790.7,5.58417]
[1743781084070,0.05,1790.9,1789.9,0.56430662]
[1743781084223,5.58462,1790.7,1790.2,5.58583]
[1743781084423,0.05,1790.9,1790.2,5.58583]
[1743781084769,5.63379,1790.9,1789.8,4.44895599]
[1743781084929,5.58487,1790.6,1790.1,5.58625]
[1743781085127,0.05,1790.9,1790.2,5.58578]
[1743781085341,5.58447,1790.7,1790.2,5.58595]
[1743781085540,0.558447,1790.7,1789.6,7.139]
[1743781085745,5.58566,1790.3,1789.7,5.58734]
[1743781085943,0.823,1790.2,1789.7,5.58734]
[1743781086264,0.823,1790.2,1790.0,5.58646]
[1743781086470,0.823,1790.2,1790.1,5.58628]
[1743781087803,0.823,1790.2,1790.0,11.1729]
[1743781087976,0.823,1790.2,1789.9,5.58676]
[1743781088172,0.823,1790.2,1789.5,11.56495599]
[1743781088173,5.58628,1790.1,1789.7,5.58749]
[1743781088389,0.7526,1790.0,1789.5,5.58815]
[1743781088702,0.7526,1790.0,1789.4,5.58817]
[1743781088874,0.7526,1790.0,1789.9,5.5869]
[1743781090007,0.7526,1790.0,1789.9,5.64276053]
[1743781090175,0.7526,1790.0,1789.9,5.5869]
[1743781090377,0.7526,1790.0,1789.9,6.704308]
[1743781091110,0.7526,1790.0,1789.9,5.5869]
[1743781091308,0.7526,1790.0,1789.7,5.58749]
[1743781091601,0.7526,1790.0,1789.6,5.58783]
[1743781091800,5.5867,1790.0,1789.6,5.58783]
[1743781092007,11.93288,1789.9,1789.4,5.58835]
[1743781092206,0.7586,1789.7,1788.8,7.082]
[1743781092374,0.7586,1789.7,1789.6,5.58784]
[1743781092774,0.8157,1790.4,1790.1,5.58622]
[1743781093010,0.8157,1790.4,1789.4,7.088]
[1743781093011,5.58584,1790.3,1789.8,5.5872]
[1743781093244,0.8157,1790.4,1789.4,7.088]
[1743781093379,0.8157,1790.4,1790.0,5.5863]
[1743781093584,0.8157,1790.4,1790.0,6.14504]
[1743781093910,0.8157,1790.4,1790.1,5.58611]
[1743781094412,5.58507,1790.5,1789.4,7.088]
[1743781094413,0.7828,1790.2,1789.9,5.58683]
[1743781094917,0.7828,1790.2,1789.5,5.58789]
[1743781094918,0.7828,1790.2,1789.8,5.58708]
[1743781095071,0.7828,1790.2,1789.9,5.58667]
[1743781095409,0.7541,1790.1,1789.9,0.05585961]
[1743781095709,0.7541,1790.1,1789.8,5.58694]
[1743781095906,0.7615,1790.0,1789.6,5.58758]
[1743781096116,0.7615,1789.9,1789.1,12.66223]
[1743781096282,0.7615,1789.7,1789.5,5.58803]
[1743781096473,0.7615,1789.7,1789.6,5.64371473]
[1743781096675,11.36439078,1790.6,1790.1,5.58614]
[1743781097042,11.36439078,1790.6,1790.0,5.58656]
[1743781097043,5.77953078,1790.6,1790.5,5.58503]
[1743781097216,5.77953078,1790.6,1790.5,6.702055]
[1743781097516,5.77953078,1790.6,1790.5,1.117025]
[1743781097699,5.58518,1790.5,1789.7,5.58744]
[1743781097869,5.77953078,1790.6,1790.0,5.58657]
[1743781098074,5.5859,1790.3,1789.8,5.5871]
[1743781098274,5.58703,1789.9,1789.1,5.99949045]
[1743781098518,3.0,1790.4,1789.2,6.18893905]
[1743781098519,5.58656,1790.1,1789.2,6.18893905]
[1743781098697,10.073,1790.4,1789.2,0.59994905]
[1743781099012,5.58638,1790.1,1789.7,5.5875]
[1743781099185,5.58599,1790.2,1789.7,5.5874]
[1743781099387,5.58565,1790.3,1789.6,5.58766]
[1743781099576,0.8275,1790.0,1789.6,6.146426]
[1743781099773,0.8275,1790.0,1789.6,6.146606]
[1743781099998,6.41417,1790.0,1789.6,6.146576]
[1743781100313,0.8275,1790.0,1789.6,0.558766]
[1743781100510,6.41425,1790.0,1789.6,5.58771]
[1743781100698,0.8275,1790.0,1789.7,5.64310988]
[1743781100907,0.8275,1790.0,1789.6,11.17547]
[1743781101127,0.8275,1790.0,1789.6,5.58766]
[1743781101294,0.8275,1790.0,1789.3,12.63052]
[1743781101501,6.41422,1790.0,1789.6,11.1753]
[1743781101730,0.8275,1790.0,1789.9,5.5869]
[1743781102217,0.8275,1790.0,1789.7,5.58748]
[1743781102413,0.8275,1790.0,1789.7,11.17476]
[1743781102729,0.8275,1790.0,1789.7,5.58752]
[1743781103113,0.8275,1790.0,1789.3,5.58859]
[1743781103288,0.7829,1789.6,1789.3,5.58859]
[1743781103631,0.7829,1789.6,1789.5,5.58815]
[1743781103989,6.33974,1790.2,1789.8,11.1742]
[1743781104327,0.7537,1790.2,1789.5,5.58815]
[1743781104625,0.7537,1790.2,1789.9,5.58689]
[1743781104928,0.8238,1789.9,1789.5,5.58798]
[1743781105224,0.8238,1789.9,1789.8,5.58721]
[1743781105998,5.77953078,1790.0,1789.9,5.5869]
[1743781106646,5.77953078,1790.0,1789.8,5.58708]
[1743781106936,5.77953078,1790.0,1789.6,5.58784]
[1743781107236,5.77953078,1790.0,1789.9,5.5869]
[1743781107537,5.77953078,1790.0,1789.6,5.58784]
[1743781107538,0.7726,1789.9,1789.6,5.58776]
[1743781107744,5.77953078,1790.0,1789.8,5.58721]
[1743781107902,5.77953078,1790.0,1789.9,5.5869]
[1743781108819,5.66399485,1790.0,1789.9,5.5869]
[1743781109019,2.30101177,1790.6,1790.5,5.58503]
[1743781109568,3.09021177,1790.6,1790.5,5.58503]
[1743781110042,2.30101177,1790.6,1790.5,5.64087573]
[1743781110251,2.30101177,1790.6,1790.5,5.58503]
[1743781110430,0.7892,1790.5,1790.3,5.58556]
[1743781110633,0.7892,1790.5,1790.3,7.408032]
[1743781111440,0.7892,1790.5,1790.3,12.993502]
[1743781111602,0.7892,1790.5,1790.4,5.58534]
[1743781111803,2.30101177,1790.6,1790.5,5.58503]
[1743781112675,5.57889,1792.5,1790.6,5.859514]
[1743781112841,5.58176,1791.6,1791.0,11.16679]
[1743781113045,5.58233,1791.4,1791.0,5.58334]
[1743781113376,5.9970487,1791.7,1791.2,5.58265]
[1743781113535,5.581,1791.8,1790.9,5.58378]
[1743781113738,5.58123,1791.8,1791.3,5.58235]
[1743781113940,5.6307,1791.9,1791.4,11.16399]
[1743781114147,0.05,1791.9,1791.5,0.05581521]
[1743781114378,0.05,1791.9,1791.8,5.58098]
[1743781114587,0.05,1791.9,1791.5,5.58191]
[1743781114876,5.63071,1791.9,1791.5,6.139931]
[1743781115052,0.05,1791.9,1791.5,5.5817]
[1743781115243,0.05,1791.9,1791.7,5.58117]